Cogmind - Beta 14 @@@ ROGUE MODE // 2024.08.30 @ 00:08:33 Player: Schmee Result: Destroyed by P-80 Master with Gamma Rifle Performance ------------- Evolutions (9) 4500 Regions Visited (17) 3400 Robots Destroyed (306) 1530 Value Destroyed (14200) 14200 Prototype IDs (57) 1140 Alien Tech Used (0) 0 Bonus (6323) 6323 TOTAL SCORE: 31093 Bonus ------- High Alert Combat Kills 4208 Follower Combat Kills 1485 Registered with UFD 300 Scanned by Researcher 500 Friendly Fire -170 Cogmind --------- Core Integrity 0/1600 Matter 121/300 Energy 42/100 System Corruption 45% Temperature Cool (0) Movement Core (50) Location -1/Access Parts ------- > --- POWER (2) -------- (None) > --- PROPULSION (6) --- Advanced Heavy Siege Treads > --- UTILITY (12) ----- Advanced Targeting Computer Advanced Target Analyzer Advanced System Restoration Module > --- WEAPON (5) ------- (None) > --- INVENTORY (5) ---- Experimental Terrain Scanner Advanced Drone Bay (2/2) Fusion Bomb Launcher Peak State ------------ > --- POWER ------------ Micro Antimatter Reactor Quantum Reactor > --- PROPULSION ------- Myomer Leg Myomer Leg Myomer Leg Myomer Exoskeleton > --- UTILITY ---------- 2N-1CE's Frost Array High-capacity Storage Unit Experimental Terrain Scanner Seismic Detector Advanced Target Analyzer Advanced Target Analyzer SHELL Armor Experimental Hacking Suite Improved Dynamic Insulation System > --- WEAPON ----------- Quantum Rifle Enhanced Quantum Rifle Enhanced Nova Cannon Railgun Fusion Bomb Launcher > --- INVENTORY -------- Reinforced Antimatter Reactor High-density Centrium Wheel Advanced Power Amplifier Advanced Heat Sink Matter Compressor Advanced Weapon Cycler Centrium Medium Armor Plating Centrium Medium Armor Plating Heavy Regenerative Plating Focal Shield Improved Remote Force Field High-powered Tractor Beam Long-range Tractor Beam Advanced Drone Bay Gamma Rifle Fusion Bomb Launcher Fusion Bomb Launcher Fusion Bomb Launcher [Rating: 211] Favorites ----------- Power Improved Deuterium Engine Engine Improved Deuterium Engine Power Core Light Nuclear Core Reactor Quantum Reactor Propulsion Armored Treads Treads Armored Treads Leg Myomer Leg Wheel High-density Centrium Wheel Utility High-capacity Storage Unit Device Seismic Detector Storage High-capacity Storage Unit Processor Rainbow Chip Hackware Improved Hacking Suite Protection Reactive Plating Weapon Enhanced Autogun Energy Gun Precision Beam Rifle Energy Cannon Enhanced Nova Cannon Ballistic Gun Enhanced Autogun Ballistic Cannon Light Cannon Launcher Fusion Bomb Launcher Special Weapon Mining Laser Impact Weapon Heavy Mace Piercing Weapon Force Lance Build | -11 -10 -10 -8 -8 -8 -8 -6 -6 -6 -6 -6 -5 -4 -3 -3 -2 -1 ------- Run | Yrd Mat Sub Mat Sto Rec Scr Fac Ext Cet Arc Hub Fac Fac Res Tes Res Acc Slots Evolved 18 | . . . 4 . . . 4 . . . . 2 2 2 . 2 2 Power 1 | . . . . . . . . . . . . . 1 . . . . Propulsion 4 | . . . 2 . . . . . . . . . . . . 1 1 Utility 10 | . . . 2 . . . 2 . . . . 1 1 2 . 1 1 Weapon 3 | . . . . . . . 2 . . . . 1 . . . . . Parts Attached 393 | . 18 48 40 15 3 15 26 16 8 1 15 18 10 8 83 19 50 Power 32 | . 2 3 2 1 1 2 1 3 1 . . . 1 1 8 2 4 Engine 10 | . 1 3 1 . 1 2 1 1 . . . . . . . . . Core 6 | . 1 . 1 1 . . . 2 . . . . . . 1 . . Reactor 16 | . . . . . . . . . 1 . . . 1 1 7 2 4 Propulsion 55 | . 3 4 10 1 . 3 . 1 2 . . . . . 18 3 10 Treads 23 | . . 4 10 1 . 3 . 1 2 . . . . . 1 . 1 Leg 25 | . 2 . . . . . . . . . . . . . 12 3 8 Wheel 7 | . 1 . . . . . . . . . . . . . 5 . 1 Hover . | . . . . . . . . . . . . . . . . . . Flight . | . . . . . . . . . . . . . . . . . . Utility 148 | . 4 20 9 2 1 5 15 4 . . 7 7 6 4 38 8 18 Device 107 | . 1 18 5 2 . . 12 4 . . 5 6 5 . 32 5 12 Storage 7 | . 2 . . . . 2 2 . . . . . . . . . 1 Processor 6 | . . . . . . 2 . . . . . . . 1 1 1 1 Hackware 2 | . . . . . . . . . . . . . . 1 . 1 . Protection 26 | . 1 2 4 . 1 1 1 . . . 2 1 1 2 5 1 4 Artifact . | . . . . . . . . . . . . . . . . . . Weapon 158 | . 9 21 19 11 1 5 10 8 5 1 8 11 3 3 19 6 18 Energy Gun 31 | . 2 3 2 4 1 . 1 . . . 1 3 2 . 2 1 9 Energy Cannon 12 | . 1 . 5 2 . . . . . . . . . . . 1 3 Ballistic Gun 58 | . 1 9 1 1 . 4 7 5 4 1 2 6 . 2 10 1 4 Ballistic Cannon 21 | . 3 2 7 2 . . . . . . 3 . . . 4 . . Launcher 17 | . 2 1 . 2 . . . 2 . . 2 1 . . 2 3 2 Special Weapon 7 | . . 6 . . . . . . 1 . . . . . . . . Impact Weapon 9 | . . . 4 . . 1 2 1 . . . 1 . . . . . Slashing Weapon . | . . . . . . . . . . . . . . . . . . Piercing Weapon 3 | . . . . . . . . . . . . . 1 1 1 . . Special Melee Weapon . | . . . . . . . . . . . . . . . . . . Unidentified Prototypes 19 | . . . 2 5 . . . . . . . . . . 9 1 2 Parts Lost 93 | . 2 6 3 2 . . 2 . . . 9 . 1 1 28 1 38 Power 14 | . 1 2 1 1 . . 1 . . . . . . 1 5 . 2 Propulsion 18 | . . 3 . . . . 1 . . . . . . . 4 1 9 Utility 28 | . 1 . 2 1 . . . . . . 4 . 1 . 5 . 14 Weapon 33 | . . 1 . . . . . . . . 5 . . . 14 . 13 Highest Loss Streak 27 | . 1 3 3 1 . . 2 . . . 5 . 1 1 8 1 27 To Critical Strikes 1 | . . 1 . . . . . . . . . . . . . . . Average Slot Usage (%) 90 | . 89 99 99 99 100 95 93 94 84 81 76 79 84 83 77 57 73 Engine 6 | . 11 13 2 . 8 8 8 2 . . . . . . . . . Core 1 | . 2 . 6 8 . . . 2 1 . . . . . . . . Reactor 1 | . . . . . . . . . 3 5 5 5 9 8 6 7 6 Treads 21 | . . 26 36 36 36 33 25 23 13 11 12 11 10 9 3 . . Leg 3 | . 26 1 . . . . . . . . . . . . 5 11 16 Device 13 | . 3 13 16 18 18 10 9 11 11 11 12 23 25 19 19 14 13 Storage 8 | . 14 14 9 9 9 7 5 5 5 5 5 5 5 4 4 4 4 Processor 4 | . . . . . . 6 10 11 11 11 6 . . 3 4 4 8 Protection 5 | . 1 . 10 9 9 9 5 5 5 5 5 4 5 8 5 6 3 Energy Gun 4 | . 6 7 2 . 8 6 3 . . . 2 2 4 9 2 . 6 Ballistic Gun 13 | . 5 16 2 5 9 10 22 28 28 28 17 21 20 13 14 . 6 Ballistic Cannon 2 | . 12 2 10 8 . . . . . . 4 . . . 1 . . Peak Build Rating 211 | 7 9 13 34 35 34 69 91 91 122 123 123 122 142 149 189 203 211 Average Rating 67 | 6 7 11 25 34 33 48 84 88 115 122 107 110 136 145 151 163 167 On Entrance 79 | 6 7 8 13 34 33 33 69 83 90 122 123 75 120 142 145 118 203 Naked Turns . | . . . . . . . . . . . . . . . . . . Heaviest Build 155 | 13 40 36 44 44 44 83 95 93 98 98 109 106 133 141 145 152 155 Greatest Support 175 | 20 20 40 80 83 83 105 102 90 160 160 160 160 160 160 160 150 175 Greatest Overweight (x) 7 | . 2 1 . . . . 1 1 . . . . . . 7 1 5 Average Overweight (x) . | . . . . . . . . . . . . . . . . . . Largest Inventory Capacity 25 | 8 15 15 15 15 15 20 25 20 20 20 20 20 20 20 20 20 20 Average Capacity 17 | 8 13 15 15 15 15 18 20 20 20 20 20 20 20 20 20 20 18 Most Carried 20 | 8 15 15 15 15 15 20 20 20 20 20 20 20 20 20 20 20 20 Average Carried 16 | 6 12 14 14 14 15 17 19 20 19 20 18 18 19 19 19 16 17 Final Capacity 20 | 8 15 15 15 15 15 20 20 20 20 20 20 20 20 20 20 20 5 Final Carried 20 | 8 15 15 15 15 15 20 20 20 20 20 15 20 20 20 19 20 4 Class Distribution -------------------- 43% | Mutant 14% | Scavenger-Mutant 13% | Scavenger-Gunner 11% | Tank 8% | Scavenger-Tank 4% | Commander-Tank 3% | Derelict-Tank Dominant Class ---------------- Mutant | -10/Materials Mutant | -10/Subcaves Scavenger-Mutant | -8/Materials Mutant | -8/Storage Mutant | -8/Recycling Mutant | -8/Scraptown Derelict-Tank | -6/Factory Commander-Tank | -6/Extension Scavenger-Tank | -6/Cetus Scavenger-Tank | -6/Archives Scavenger-Tank | -6/Hub_04(d) Scavenger-Tank | -5/Factory Scavenger-Gunner | -4/Factory Scavenger-Gunner | -3/Research Scavenger-Gunner | -3/Testing Scavenger-Mutant | -2/Research Scavenger-Gunner | -1/Access Resources | -11 -10 -10 -8 -8 -8 -8 -6 -6 -6 -6 -6 -5 -4 -3 -3 -2 -1 ----------- Run | Yrd Mat Sub Mat Sto Rec Scr Fac Ext Cet Arc Hub Fac Fac Res Tes Res Acc Matter Collected 11389 | 208 493 740 608 501 28 177 808 1090 160 242 820 523 239 379 2809 326 1238 Remotely 776 | . . . . . . . . . . . . . . . 526 . 250 Salvage Created 15261 | 112 477 452 975 675 51 . 678 1217 . 238 1137 615 208 832 4372 428 2794 Parts 751 | 3 49 37 50 41 6 . 44 65 . 12 49 29 15 38 199 28 86 Haulers Intercepted 10 | . 2 . 5 2 . . . . . . . . . . 1 . . Recyclers Shooed 7 | . . . 1 1 . . 1 2 . . 1 . . . . . 1 Parts Field Recycled . | . . . . . . . . . . . . . . . . . . Retrieved Matter . | . . . . . . . . . . . . . . . . . . Parts Self-Destructed 14 | . . 14 . . . . . . . . . . . . . . . Prevented . | . . . . . . . . . . . . . . . . . . Kills | -11 -10 -10 -8 -8 -8 -8 -6 -6 -6 -6 -6 -5 -4 -3 -3 -2 -1 ------- Run | Yrd Mat Sub Mat Sto Rec Scr Fac Ext Cet Arc Hub Fac Fac Res Tes Res Acc Combat Hostiles Destroyed 236 | . 17 14 13 14 1 . 11 15 . 2 24 10 3 11 62 9 30 Guns 156 | . 5 9 5 3 1 . 11 13 . 2 12 6 3 11 55 . 20 Cannons 31 | . 6 2 8 5 . . . . . . 1 . . . 4 4 1 AOE 46 | . 6 3 . 5 . . . 2 . . 11 4 . . 3 5 7 Classes Destroyed 24 | 2 5 2 3 1 . . 3 . . . 2 . . . 4 . 2 Worker 17 | . . . 1 1 . . . . . . 6 1 . . 4 . 4 Builder 18 | . 1 . 1 . . . 2 3 . . 5 . . 1 3 1 1 Tunneler 7 | 1 2 . . . . . . 3 . . . . . . . 1 . Hauler 10 | . 2 . 5 2 . . . . . . . . . . 1 . . Recycler 15 | 1 . . 3 2 . . . 2 . . 1 1 . . . . 5 Carrier 1 | . . . . . . . . . . . . . . . 1 . . Mechanic 1 | . . . . . . . . . . . . . . . . . 1 Operator 4 | . . . . 1 . . . . . 3 . . . . . . . Watcher 3 | . 1 . . . . . . 2 . . . . . . . . . Swarmer 30 | . 9 4 . 3 . . . 3 . . . 5 . . . . 6 Saboteur 1 | . . . . . . . . . . . . . . . 1 . . Grunt 95 | . 8 . 8 5 . . 2 1 . . 15 . . 8 31 2 15 Brawler 7 | . . . . . . . 1 . . . 1 . . . 2 . 3 Duelist 4 | . . . 1 . . . . . . . 1 . . . . . 2 Researcher 2 | . . . . . . . . . . . . . . . 2 . . Sentry 30 | . . 1 2 5 1 . 3 10 . 2 2 2 . 1 . . 1 Specialist 6 | . . . . . . . . . . . 1 2 . . 3 . . Hunter 23 | . . . 2 1 . . 3 . . . 3 1 . 2 8 3 . Programmer 22 | . . . . . . . 1 . . . . . 2 . 14 4 1 Heavy 1 | . . . . . . . . . . . 1 . . . . . . Q-Series 2 | . . . . . . . . . . . . . . . . . 2 Behemoth 3 | . . . . . . . 1 1 . . . . 1 . . . . Striker 2 | . . . . . . . . . . . . . . . 2 . . Protovariant X 1 | . . . . . . . . . . . . . . . 1 . . Subdweller 9 | . . 9 . . . . . . . . . . . . . . . Best Kill Streak 27 | 2 3 3 5 6 1 . 6 5 . 2 27 6 2 9 11 5 6 Combat Bots Only 17 | . 3 3 3 4 1 . 4 3 . 2 17 6 2 8 11 5 4 Max Kills in Single Turn 5 | 1 2 2 2 2 1 . 2 4 . 1 5 4 2 2 2 3 2 Gunslinging 1 | . . . . . . . 1 1 . . . . 1 1 1 . . Exploded 4 | . 2 2 . 2 . . . 1 . . 3 4 . . 2 3 2 Melee . | . . . . . . . . . . . . . . . . . . Uniques/NPCs Destroyed . | . . . . . . . . . . . . . . . . . . Combat | -11 -10 -10 -8 -8 -8 -8 -6 -6 -6 -6 -6 -5 -4 -3 -3 -2 -1 -------- Run | Yrd Mat Sub Mat Sto Rec Scr Fac Ext Cet Arc Hub Fac Fac Res Tes Res Acc Hostile Shots Fired 2358 | . 54 77 85 78 4 . 113 219 8 2 252 26 68 67 759 112 434 Missed 688 | . 16 28 18 20 1 . 34 85 4 1 76 8 15 18 217 42 105 Damage Taken 31432 | . 418 1101 1057 871 43 . 1272 1050 172 18 2646 202 1104 891 9898 1839 8850 Core 2972 | . 59 142 88 44 . . 81 47 . . 146 22 39 64 614 23 1603 Absorbed by Shields 484 | . . . 28 . . . . 124 . . . 76 139 . . . 117 Reduced by Siege Mode 125 | . . . . . . . . . . . . . 52 . 73 . . Redirected to Shielding 43 | . . 6 37 . . . . . . . . . . . . . . Ignored by Resistances 2024 | . . . . . . . 231 134 12 5 120 . 117 . 1163 . 242 Regen/Repaired (Parts) 7348 | . 114 . . . . 800 142 258 10 . 21 . . . 3252 1818 933 Core Remaining (%) 75 | 100 . 19 . . . 76 . . . . 67 97 96 . 47 98 . Volleys Fired 707 | 8 42 100 52 44 2 . 30 44 6 26 44 15 10 23 129 36 96 Largest 5 | 2 2 2 2 2 2 . 5 5 5 5 4 5 5 5 5 2 5 Hottest 394 | 70 95 100 140 112 86 . 193 126 126 136 198 259 259 259 259 120 394 Shots Fired 2011 | 16 79 150 95 74 5 . 135 172 22 76 158 68 49 115 491 39 267 Gun 1591 | 16 30 76 38 19 5 . 135 168 20 76 128 67 49 115 413 . 236 Cannon 339 | . 44 35 57 50 . . . . . . 24 . . . 76 30 23 Launcher 43 | . 5 3 . 5 . . . 4 . . 6 1 . . 2 9 8 Special 38 | . . 36 . . . . . . 2 . . . . . . . . Kinetic 1477 | 8 41 89 69 57 2 . 125 168 20 76 145 54 44 69 411 . 99 Thermal 471 | 8 33 58 26 11 3 . 10 . . . 7 13 5 46 74 30 147 Explosive 43 | . 5 3 . 5 . . . 4 . . 6 1 . . 2 9 8 Electromagnetic 18 | . . . . 1 . . . . . . . . . . 4 . 13 Robot Hit Streak 31 | 7 8 31 12 13 6 . 11 22 4 8 13 9 20 12 19 10 13 Robot Miss Streak 6 | 1 3 2 5 3 . . 3 3 2 2 4 3 3 4 6 2 5 Penetration Max 4 | . . . . . . . 2 1 . 1 1 . . 1 4 . 1 Secondary Targets 18 | . 1 . . . . . 2 3 . . . 1 1 1 4 . 5 Max Gunslinging Chain 1 | . 1 . . . . . 1 1 . . . 1 1 1 1 . 1 Shots Hit Robots 1270 | 13 45 85 64 45 4 . 93 122 15 58 110 45 35 68 282 20 166 Core Hits 702 | 4 29 28 35 34 2 . 37 55 1 20 113 26 9 29 175 24 81 Critical Kills 53 | . . . . 1 . . 1 1 . . 2 1 . 2 41 . 4 Critical Parts Destroyed 75 | . . . 1 . . . 1 1 . 2 4 1 . 4 54 . 7 Critical Strikes 153 | 2 . 3 3 2 1 . 2 2 . 3 6 2 1 6 106 . 14 Burn 3 | 2 . . . . 1 . . . . . . . . . . . . Meltdown 2 | . . . . 1 . . . . . . . . . . . . 1 Destroy 132 | . . . 1 . . . 2 2 . 3 6 2 1 6 97 . 12 Blast 15 | . . 3 2 1 . . . . . . . . . . 9 . . Corrupt 1 | . . . . . . . . . . . . . . . . . 1 Melee Attacks 29 | . . . 12 . . . 6 3 . . . 1 2 3 2 . . Impact 22 | . . . 12 . . . 6 3 . . . 1 . . . . . Slashing . | . . . . . . . . . . . . . . . . . . Piercing 7 | . . . . . . . . . . . . . 2 3 2 . . Sneak Attacks 2 | . . . 2 . . . . . . . . . . . . . . Combat Hostiles . | . . . . . . . . . . . . . . . . . . Follow-up Attacks . | . . . . . . . . . . . . . . . . . . Damage Inflicted 41198 | 134 965 1827 1609 1275 65 . 1978 3772 275 1246 4573 1311 1037 1984 9463 2120 7564 Guns 26894 | 132 209 1160 618 251 65 . 1978 2672 275 1246 2286 1144 1037 1984 6726 . 5111 Cannons 5142 | . 493 480 779 621 . . . . . . 189 . . . 1347 728 505 Explosions 8354 | . 254 187 . 400 . . . 815 . . 2098 163 . . 1237 1373 1827 Melee 504 | . . . 196 . . . . 285 . . . . . . 23 . . Ramming 304 | 2 9 . 16 3 . . . . . . . 4 . . 130 19 121 Kinetic 23627 | 43 429 1346 1001 690 31 . 1767 2672 275 1246 2296 861 889 1103 6758 . 2220 Thermal 8420 | 89 273 294 396 203 34 . 211 . . . 179 283 148 881 1566 728 3135 Explosive 7995 | . 254 187 . 364 . . . 815 . . 2098 163 . . 914 1373 1827 Electromagnetic 348 | . . . . 15 . . . . . . . . . . 72 . 261 Impact 481 | . . . 196 . . . . 285 . . . . . . . . . Slashing . | . . . . . . . . . . . . . . . . . . Piercing 23 | . . . . . . . . . . . . . . . 23 . . Highest Corruption 45 | . . . . 1 1 . . . . . . 1 . . 21 4 45 Average Corruption 9 | . . . . 1 1 . . . . . . 1 . . 14 2 30 Corruption Purged . | . . . . . . . . . . . . . . . . . . Corruption Blocked . | . . . . . . . . . . . . . . . . . . Effects 139 | . . . . 2 7 . . . . . . 3 . . 88 8 31 Message Errors 23 | . . . . . 2 . . . . . . 1 . . 13 2 5 Matter Fused 24 | . . . . . 2 . . . . . . . . . 16 1 5 Heat Flow Errors 15 | . . . . . 1 . . . . . . . . . 12 1 1 Energy Discharges 18 | . . . . . 1 . . . . . . 1 . . 14 1 1 Parts Rejected 7 | . . . . . . . . . . . . . . . 5 . 2 Parts Fused 1 | . . . . . . . . . . . . . . . 1 . . Data Loss (minor) 12 | . . . . . . . . . . . . 1 . . 6 1 4 Data Loss (major) 5 | . . . . 2 . . . . . . . . . . 2 1 . Misfires 3 | . . . . . 1 . . . . . . . . . 1 1 . Alerts 5 | . . . . . . . . . . . . . . . 4 . 1 Misdirections 11 | . . . . . . . . . . . . . . . 6 . 5 Weapon Failures 15 | . . . . . . . . . . . . . . . 8 . 7 Overload Shots 1 | . . . . . . . . . . . . . . . 1 . . Overflow Damage 562 | . 23 40 . 14 . . . 65 . . 31 8 . . 180 64 137 Projectiles 127 | . . . . 6 . . . . . . . . . . 64 53 4 Explosions 338 | . 23 40 . 8 . . . 5 . . 31 8 . . 116 10 97 Melee 97 | . . . . . . . . 60 . . . . . . . 1 36 Knockbacks 37 | . 3 8 3 3 . . . . . . 1 . . . 17 . 2 Impact 4 | . . . . 1 . . . . . . . . . . 1 . 2 Kinetic 31 | . 3 7 3 2 . . . . . . 1 . . . 15 . . Secondary 2 | . . 1 . . . . . . . . . . . . 1 . . Self-Inflicted Damage 925 | . 36 22 . 97 . . . . . . 46 . . . 287 . 437 Shots 19 | . 1 1 . 5 . . . . . . 3 . . . 3 . 6 Rammed 12 | . 1 . 3 2 . . . . . . . 2 . . 1 . 3 Targets Rammed 31 | 2 1 . 4 2 . . . . . . . 2 . . 12 2 6 Kicked 18 | 2 . . . . . . . . . . . . . . 11 2 3 Crushed 1 | . . . 1 . . . . . . . . . . . . . . Highest Temperature 674 | 82 141 . 351 39 88 . 363 320 . . 171 250 577 274 523 264 674 Average Temperature 108 | 39 53 . 122 11 34 . 147 126 . . 39 76 149 93 107 70 192 Received Heat Transfer 5295 | . 126 195 481 297 9 . 159 313 36 . 591 12 403 139 1688 72 774 Effects 31 | . . . 3 . . . 2 . . . . . 4 . 7 . 15 Shutdowns 8 | . . . . . . . . . . . . . 2 . 2 . 4 Energy Bleed 5 | . . . . . . . 1 . . . . . . . 2 . 2 Interference 7 | . . . 3 . . . 1 . . . . . . . . . 3 Matter Decay 3 | . . . . . . . . . . . . . . . 1 . 2 Short Circuit 2 | . . . . . . . . . . . . . 2 . . . . Damage (minor) 1 | . . . . . . . . . . . . . . . 1 . . Damage (major) 3 | . . . . . . . . . . . . . . . . . 3 Damage (core) 2 | . . . . . . . . . . . . . . . 1 . 1 Siege Activations 7 | . . . . . . . . . . . . . 1 . 6 . . Total Turns 142 | . . . . . . . . . . . . . 36 . 106 . . Longest Duration 36 | . . . . . . . . . . . . . 36 . 33 . . Robots Corrupted 2 | . . . . . . . . . . . . . . . . . 2 Combat Hostiles 1 | . . . . . . . . . . . . . . . . . 1 Parts Fried 5 | . . . . . . . . 1 . . . . . . . . 4 Impact Corruptions 6 | . . . . . . . . 3 . . . . . . . 1 2 Robots Melted 2 | . . . . 1 . . . . . . . . . . . . 1 Combat Hostiles 2 | . . . . 1 . . . . . . . . . . . . 1 Parts Melted 19 | 3 . 2 . 1 . . . . . . . . 1 1 . 5 6 Heat Transferred 10782 | 407 666 350 509 346 148 . 500 . . . 222 333 148 1110 1803 518 3722 Parts Sabotaged 1 | . . . . . . . . . . . . . . . 1 . . Parts Stolen . | . . . . . . . . . . . . . . . . . . Parts Stripped . | . . . . . . . . . . . . . . . . . . Power Chain Reactions 2 | . . . . 1 . . . . . . . . . . 1 . . Alert | -11 -10 -10 -8 -8 -8 -8 -6 -6 -6 -6 -6 -5 -4 -3 -3 -2 -1 ------- Run | Yrd Mat Sub Mat Sto Rec Scr Fac Ext Cet Arc Hub Fac Fac Res Tes Res Acc Peak Influence 1865 | 10 341 . 163 489 203 . 243 897 561 320 867 527 371 265 1865 1505 1640 Initial 1048 | . 6 . . 31 174 . . 42 455 224 112 399 257 113 37 1048 902 Average 432 | 4 161 . 74 331 85 . 97 347 546 297 474 462 289 116 930 1242 1100 Maximum Alert Level 5 | . 1 . . 2 1 . 1 3 2 1 3 2 1 1 5 4 5 Low Security (%) 45 | 100 70 . 100 24 83 . 93 48 . 1 18 . 4 73 12 . . Level 1 17 | . 29 . . 25 16 . 6 13 . 98 33 18 95 26 12 . . Level 2 14 | . . . . 50 . . . 13 100 . 12 81 . . 9 . 11 Level 3 10 | . . . . . . . . 23 . . 34 . . . 24 10 34 Level 4 11 | . . . . . . . . . . . . . . . 33 89 49 Level 5 1 | . . . . . . . . . . . . . . . 7 . 4 High Security . | . . . . . . . . . . . . . . . . . . Max Security . | . . . . . . . . . . . . . . . . . . Squads Dispatched 72 | . 3 . 1 3 . . 2 2 . . 10 3 2 3 24 7 12 Investigation 7 | . . . 1 1 . . 1 . . . . . . 1 2 1 . Extermination 11 | . . . . . . . 1 . . . . . 1 . 5 2 2 Reinforcement 29 | . 3 . . 2 . . . 2 . . 7 1 1 1 7 3 2 Assault 16 | . . . . . . . . . . . 1 2 . . 7 1 5 Garrison 9 | . . . . . . . . . . . 2 . . 1 3 . 3 Intercept . | . . . . . . . . . . . . . . . . . . Searches Triggered . | . . . . . . . . . . . . . . . . . . Construction Impeded 7 | . . . . . . . . 1 . . 2 . . 1 1 2 . Haulers Reinforced 4 | . . . . . . . . . . . 1 . . . 1 1 1 Active Scanning Responses . | . . . . . . . . . . . . . . . . . . Cargo Convoy Interrupts . | . . . . . . . . . . . . . . . . . . Stealth | -11 -10 -10 -8 -8 -8 -8 -6 -6 -6 -6 -6 -5 -4 -3 -3 -2 -1 --------- Run | Yrd Mat Sub Mat Sto Rec Scr Fac Ext Cet Arc Hub Fac Fac Res Tes Res Acc Distress Signals 23 | . 2 . . . . . . 3 1 . 3 1 3 1 2 2 5 Communications Jammed 26 | . . . . . . . . . . . . . . . 26 . . Distress Signals 23 | . . . . . . . . . . . . . . . 23 . . Times Spotted 424 | . 28 18 17 23 1 . 11 31 5 20 37 14 7 11 113 15 73 Peak Tracking Total 14 | . 4 3 4 4 1 . 4 5 5 1 8 6 6 3 12 7 14 Tactical Retreats 38 | . 1 2 . 4 . . . 1 . . . . . . 14 2 14 Traps | -11 -10 -10 -8 -8 -8 -8 -6 -6 -6 -6 -6 -5 -4 -3 -3 -2 -1 ------- Run | Yrd Mat Sub Mat Sto Rec Scr Fac Ext Cet Arc Hub Fac Fac Res Tes Res Acc Traps Triggered 12 | . . . 1 . . . 2 . . . 1 1 . . 5 1 1 Indirectly . | . . . . . . . . . . . . . . . . . . Trap Hack Attempts . | . . . . . . . . . . . . . . . . . . Triggered . | . . . . . . . . . . . . . . . . . . Disarmed . | . . . . . . . . . . . . . . . . . . Reprogrammed . | . . . . . . . . . . . . . . . . . . Reused . | . . . . . . . . . . . . . . . . . . Traps Extracted . | . . . . . . . . . . . . . . . . . . Installed . | . . . . . . . . . . . . . . . . . . Triggered . | . . . . . . . . . . . . . . . . . . Machines | -11 -10 -10 -8 -8 -8 -8 -6 -6 -6 -6 -6 -5 -4 -3 -3 -2 -1 ---------- Run | Yrd Mat Sub Mat Sto Rec Scr Fac Ext Cet Arc Hub Fac Fac Res Tes Res Acc Machines Disabled 43 | . 1 1 . 5 . . 1 4 1 2 3 . 1 . 19 3 2 Max in Single Turn 2 | . 1 1 . 1 . . 1 1 . 1 1 . 1 . 2 1 1 Garrison Access 2 | . . . . 1 . . . . . . . . . 1 . . . Energy Cycler 2 | . . . . . . . . 2 . . . . . . . . . Machines Repaired . | . . . . . . . . . . . . . . . . . . Machines Dismantled . | . . . . . . . . . . . . . . . . . . Machines Sabotaged . | . . . . . . . . . . . . . . . . . . Overloaded Fab Kills . | . . . . . . . . . . . . . . . . . . Hacking | -11 -10 -10 -8 -8 -8 -8 -6 -6 -6 -6 -6 -5 -4 -3 -3 -2 -1 --------- Run | Yrd Mat Sub Mat Sto Rec Scr Fac Ext Cet Arc Hub Fac Fac Res Tes Res Acc Machines Accessed 54 | . 4 1 5 5 5 5 6 5 . 1 . 1 2 5 3 3 3 Terminals 34 | . 3 . 4 4 5 . 5 5 . . . . . 3 2 2 1 Fabricators . | . . . . . . . . . . . . . . . . . . Repair Stations 7 | . 1 . 1 . . . 1 . . . . 1 2 . 1 . . Recycling Units 3 | . . . . . . . . . . . . . . 1 . 1 1 Scanalyzers . | . . . . . . . . . . . . . . . . . . Garrison Access 3 | . . . . 1 . . . . . . . . . 1 . . 1 Total Hacks 138 | . 13 9 11 13 17 18 11 8 . 3 . 2 5 8 9 3 8 Successful 72 | . 9 9 5 5 6 18 4 4 . 3 . 1 . 4 . 1 3 Failed 65 | . 3 . 6 8 11 . 7 4 . . . 1 5 4 9 2 5 Catastrophic 12 | . . . 1 2 . . 3 1 . . . . . 2 1 1 1 Database Lockouts 1 | . 1 . . . . . . . . . . . . . . . . Manual 58 | . 10 . 7 9 11 . 7 4 3 . . . . 2 . 3 2 Terminals 80 | . 7 . 9 12 17 . 8 8 . . . . . 6 7 2 4 Fabricators . | . . . . . . . . . . . . . . . . . . Repair Stations 20 | . 6 . 2 . . . 3 . . . . 2 5 . 2 . . Recycling Units 4 | . . . . . . . . . . . . . . 1 . 1 2 Scanalyzers . | . . . . . . . . . . . . . . . . . . Garrison Access 4 | . . . . 1 . . . . . . . . . 1 . . 2 Terminal Hacks 47 | . 1 9 2 2 4 18 . 3 . 3 . . . 2 . . 3 Record 29 | . . 8 . . . 18 . . . 3 . . . . . . . Part Schematic 2 | . . . . . 2 . . . . . . . . . . . . Robot Analysis 1 | . 1 . . . . . . . . . . . . . . . . Open Door 3 | . . . . . . . . 3 . . . . . . . . . Branch Access Points 2 | . . . 1 . . . . . . . . . . 1 . . . Alert Level 2 | . . . . 1 1 . . . . . . . . . . . . Unreport Threat 5 | . . . 1 . . . . . . . . . . 1 . . 3 Locate Traps 1 | . . . . 1 . . . . . . . . . . . . . Transport Status 1 | . . . . . 1 . . . . . . . . . . . . Derelict Proto ID Bank 1 | . . 1 . . . . . . . . . . . . . . . Fabricator Hacks . | . . . . . . . . . . . . . . . . . . Repair Station Hacks 10 | . 6 . 1 . . . 2 . . . . 1 . . . . . Scan Component 6 | . 3 . 1 . . . 1 . . . . 1 . . . . . Repair 4 | . 3 . . . . . 1 . . . . . . . . . . Recycling Unit Hacks . | . . . . . . . . . . . . . . . . . . Scanalyzer . | . . . . . . . . . . . . . . . . . . Garrison Access Hacks 2 | . . . . 1 . . . . . . . . . 1 . . . Seal Access 2 | . . . . 1 . . . . . . . . . 1 . . . Unauthorized Hacks 13 | . 2 . 2 2 2 . 2 1 . . . . . 1 . 1 . Terminals 12 | . 2 . 2 2 2 . 2 1 . . . . . 1 . . . Botnet 12 | . 2 . 2 2 2 . 2 1 . . . . . 1 . . . Fabricators . | . . . . . . . . . . . . . . . . . . Repair Stations 1 | . . . . . . . . . . . . . . . . 1 . Recycling Units . | . . . . . . . . . . . . . . . . . . Scrapoids 1 | . . . . . . . . . . . . . . . . 1 . Scanalyzers . | . . . . . . . . . . . . . . . . . . Garrison Access . | . . . . . . . . . . . . . . . . . . Data Cores Recovered . | . . . . . . . . . . . . . . . . . . Used . | . . . . . . . . . . . . . . . . . . Hacking Detections 43 | . 4 . 5 4 5 . 6 3 1 . . 1 2 4 3 2 3 Full Trace Events 5 | . 1 . . 1 . . . . . . . . . 1 2 . . Feedback Events 1 | . . . . 1 . . . . . . . . . . . . . Corruption 1 | . . . . 1 . . . . . . . . . . . . . Feedback Blocked . | . . . . . . . . . . . . . . . . . . Robot Schematics Acquired 1 | . . . . . . . . . . . . . . . 1 . . Robots Built . | . . . . . . . . . . . . . . . . . . Authchips . | . . . . . . . . . . . . . . . . . . Time . | . . . . . . . . . . . . . . . . . . Total Robot Build Rating . | . . . . . . . . . . . . . . . . . . Part Schematics Acquired 10 | . . . . . 2 . . . . . . . . . 8 . . Parts Built . | . . . . . . . . . . . . . . . . . . Authchips . | . . . . . . . . . . . . . . . . . . Time . | . . . . . . . . . . . . . . . . . . Total Part Build Rating . | . . . . . . . . . . . . . . . . . . Parts Repaired 4 | . 3 . . . . . 1 . . . . . . . . . . Time 97 | . 78 . . . . . 19 . . . . . . . . . . Parts Recycled . | . . . . . . . . . . . . . . . . . . Recycled Matter . | . . . . . . . . . . . . . . . . . . Retrieved Matter . | . . . . . . . . . . . . . . . . . . Retrieved Components . | . . . . . . . . . . . . . . . . . . Parts Scanalyzed . | . . . . . . . . . . . . . . . . . . Part Schematics Acquired . | . . . . . . . . . . . . . . . . . . Parts Damaged . | . . . . . . . . . . . . . . . . . . Bothacking | -11 -10 -10 -8 -8 -8 -8 -6 -6 -6 -6 -6 -5 -4 -3 -3 -2 -1 ------------ Run | Yrd Mat Sub Mat Sto Rec Scr Fac Ext Cet Arc Hub Fac Fac Res Tes Res Acc Used RIF Installer . | . . . . . . . . . . . . . . . . . . Robots Hacked . | . . . . . . . . . . . . . . . . . . Non-combat . | . . . . . . . . . . . . . . . . . . Combat . | . . . . . . . . . . . . . . . . . . Robot Hacks Applied . | . . . . . . . . . . . . . . . . . . Relay Couplers Released . | . . . . . . . . . . . . . . . . . . Fabnet Peak Effective % . | . . . . . . . . . . . . . . . . . . Robots Rewired 12 | . . . . . . . . 12 . . . . . . . . . Allies Hacked . | . . . . . . . . . . . . . . . . . . Hacks Repelled . | . . . . . . . . . . . . . . . . . . Allies | -11 -10 -10 -8 -8 -8 -8 -6 -6 -6 -6 -6 -5 -4 -3 -3 -2 -1 -------- Run | Yrd Mat Sub Mat Sto Rec Scr Fac Ext Cet Arc Hub Fac Fac Res Tes Res Acc Total Allies 24 | . . . . . . . . 16 . . . . . . . 5 3 Largest Group 11 | . . . . . . . . 11 10 7 3 . . . . 5 5 Highest-Rated Group 459 | . . . . . . . . 459 459 342 101 . . . . 320 320 Highest-Rated Ally 159 | . . . . . . . . 159 159 153 39 . . . . 64 64 Total Orders 25 | . . . . . . . . 4 4 . . . 3 . . 10 4 STAY 6 | . . . . . . . . 2 2 . . . . . . . 2 FOLLOW 6 | . . . . . . . . 2 2 . . . . . . . 2 EXPLORE 8 | . . . . . . . . . . . . . 2 . . 6 . RETURN 5 | . . . . . . . . . . . . . 1 . . 4 . Ally Attacks 303 | . . . . . . . . 119 24 30 30 . . . . 15 85 Total Damage 6638 | . . . . . . . . 2869 704 513 349 . . . . 321 1882 Kills 43 | . . . . . . . . 21 5 2 3 . . . . 1 11 Allies Corrupted 2 | . . . . . . . . . . . . . . . . . 2 Allies Melted . | . . . . . . . . . . . . . . . . . . Intel | -11 -10 -10 -8 -8 -8 -8 -6 -6 -6 -6 -6 -5 -4 -3 -3 -2 -1 ------- Run | Yrd Mat Sub Mat Sto Rec Scr Fac Ext Cet Arc Hub Fac Fac Res Tes Res Acc Robot Analysis Total 1 | . 1 . . . . . . . . . . . . . . . . Derelict Logs Recovered 3 | . . . . . . 3 . . . . . . . . . . . Drone Launches 7 | . . . . . . . . . . . . . 2 . . 5 . Drone Recoveries 7 | . . . . . . . . . . . . . 2 . . 5 . Exploration | -11 -10 -10 -8 -8 -8 -8 -6 -6 -6 -6 -6 -5 -4 -3 -3 -2 -1 ------------- Run | Yrd Mat Sub Mat Sto Rec Scr Fac Ext Cet Arc Hub Fac Fac Res Tes Res Acc Turns Passed 22667 | 51 1641 3580 1402 914 918 4931 1318 1719 368 253 378 689 422 506 1956 561 1060 Spaces Moved 11991 | 21 862 1907 686 438 532 2964 611 821 204 109 126 372 211 248 866 375 638 Core 142 | . . . . . . . . . . . . . . . . . 142 Treads 9501 | . . 1861 686 438 532 2964 611 821 204 109 126 372 211 248 318 . . Legs 1988 | 21 711 46 . . . . . . . . . . . . 376 375 459 Wheels 360 | . 151 . . . . . . . . . . . . . 172 . 37 Hover . | . . . . . . . . . . . . . . . . . . Flight . | . . . . . . . . . . . . . . . . . . Fastest Speed 50 | 120 110 160 160 167 167 161 163 167 160 160 160 160 160 160 100 110 50 Average Speed 159 | 120 158 160 162 167 167 164 181 172 160 160 160 160 160 160 153 115 111 Slowest Speed 320 | 120 190 190 167 167 167 167 252 252 167 160 160 160 160 160 320 179 255 Overloaded Moves . | . . . . . . . . . . . . . . . . . . Propulsion Burnouts . | . . . . . . . . . . . . . . . . . . Robots Hopped . | . . . . . . . . . . . . . . . . . . Cave-ins Triggered . | . . . . . . . . . . . . . . . . . . Exploration Rate (%) 47 | 3 87 87 45 47 95 95 12 80 62 78 15 9 10 7 83 15 23 Regions Visited 17 Branch Regions 9 Pre-discovered Areas 1 | . . . . . . 1 . . . . . . . . . . . Known Exits Taken 2 | . . . 1 . . . . . . . . . . 1 . . . Unknown Exits Taken 15 | 1 1 1 . 1 1 1 1 1 1 1 1 1 1 . 1 1 . Scrap Searched 14 | . . 3 . . . 11 . . . . . . . . . . . Spaces Dug 42 | . . . 8 . . . 6 . . . . 1 5 1 10 5 6 Terrain Destroyed 710 | . 41 18 23 46 . . 58 38 . 1 64 45 9 10 129 104 124 Melee 19 | . . . 8 . . . 6 . . . . 1 2 1 1 . . Projectile 148 | . . . 15 6 . . 1 2 . 1 20 11 7 9 39 14 23 AOE 538 | . 41 18 . 40 . . 51 36 . . 44 33 . . 84 90 101 Terrain Rammed . | . . . . . . . . . . . . . . . . . . Walls Destroyed . | . . . . . . . . . . . . . . . . . . Machines Disabled . | . . . . . . . . . . . . . . . . . . Actions | -11 -10 -10 -8 -8 -8 -8 -6 -6 -6 -6 -6 -5 -4 -3 -3 -2 -1 --------- Run | Yrd Mat Sub Mat Sto Rec Scr Fac Ext Cet Arc Hub Fac Fac Res Tes Res Acc Total 14131 | 32 1058 2188 853 556 557 3016 757 1029 240 143 197 428 275 304 1201 464 833 Wait 586 | . 110 110 28 39 21 5 58 47 . 5 5 13 23 19 68 20 15 Move 11975 | 21 861 1906 685 437 531 2963 610 820 203 108 125 371 210 247 865 374 638 Hop . | . . . . . . . . . . . . . . . . . . Pick Up 138 | 2 16 12 14 9 . 17 12 1 8 1 2 6 8 2 11 7 10 Fast Attach 94 | . 4 1 3 2 . 4 2 . 2 1 6 7 3 1 37 6 15 Attach 80 | . 2 5 7 1 . 1 3 . 2 . 4 4 4 4 14 10 19 Detach 26 | . 1 . . . . . . . 1 . . 1 3 2 7 5 6 Swap 220 | . 12 42 30 12 3 10 21 16 4 . 5 7 3 3 33 3 16 Drop 150 | . 9 12 18 10 . 16 15 3 14 2 6 1 9 . 22 1 12 Fire 707 | 8 42 100 52 44 2 . 30 44 6 26 44 15 10 23 129 36 96 Melee 29 | . . . 12 . . . 6 3 . . . 1 2 3 2 . . Ram 5 | . 1 . . . . . . . . . . . . . 1 . 3 Kick 17 | 1 . . . . . . . . . . . . . . 11 2 3 Crush 9 | . . . 4 2 . . . . . . . 2 . . 1 . . Escape Stasis . | . . . . . . . . . . . . . . . . . . Rewire 95 | . . . . . . . . 95 . . . . . . . . . Trap . | . . . . . . . . . . . . . . . . . . Miscellaneous . | . . . . . . . . . . . . . . . . . . Route ------- -11/Scrapyard -10/Materials (discovered 5 exits: [*Mat x2] / [*Min x2] / *Sub) -10/Subcaves (discovered 3 exits: *Mat x2 / *Rec) -8/Materials -8/Storage -8/Recycling (discovered 2 exits: *Fac / *Scr) -8/Scraptown (discovered 2 exits: *Fac x2) -6/Factory -6/Extension (discovered 3 exits: *Fac x2 / *Cet) -6/Cetus -6/Archives (discovered 2 exits: [*Hub x2]) -6/Hub_04(d) -5/Factory -4/Factory -3/Research (discovered 3 exits: Arm / *Tes x2) -3/Testing -2/Research -1/Access History --------- Turn | Location | Event 1 | -11/Scrapyard | Discovered new exit (range 2) 52 | -11/Scrapyard | Entered Materials 199 | -10/Materials | Discovered new exit (range 16) 218 | -10/Materials | Central database locked down 303 | -10/Materials | Build established: Mutant 526 | -10/Materials | Discovered new exit (range 10) 583 | -10/Materials | Discovered new exit (range 8) 832 | -10/Materials | Discovered new exit (range 16) 952 | -10/Materials | Repaired Grenade Launcher 979 | -10/Materials | Repaired Lgt. Treads 1006 | -10/Materials | Repaired Beam Cannon 1450 | -10/Materials | Discovered new exit (range 10) 1693 | -10/Materials | Entered Subcaves 1843 | -10/Subcaves | Core integrity fell below 50% 1861 | -10/Subcaves | Lost 3 parts (1p2n) 2221 | -10/Subcaves | Discovered new exit (range 14) 2442 | -10/Subcaves | Shifting Twisted Machinery released Battle Rifle 2494 | -10/Subcaves | Discovered new exit (range 7) 2496 | -10/Subcaves | Build established: Scavenger-Mutant 2528 | -10/Subcaves | Shifting Twisted Machinery released Sub. Monowheel 2565 | -10/Subcaves | Discovered new exit (range 10) 3249 | -10/Subcaves | A swath of the cavern ceiling suddenly collapsed 3683 | -10/Subcaves | Shifting Twisted Machinery released Flamer 3692 | -10/Subcaves | Shifting Twisted Machinery released Mak. System Shield 3983 | -10/Subcaves | Core integrity fell below 20% 4185 | -10/Subcaves | Visited 4L-MR0's lab 4208 | -10/Subcaves | Found Rainbow Chip 4286 | -10/Subcaves | Build established: Mutant 4505 | -10/Subcaves | Shifting Twisted Machinery released Shrapnel Trap 5273 | -10/Subcaves | Entered Materials 5273 | -8/Materials | Evolved 4 slots: Propulsion x2, Utility x2 5696 | -8/Materials | Build established: Scavenger-Mutant 5703 | -8/Materials | Lost 3 parts (1p2u) 6413 | -8/Materials | Discovered new exit (range 8) 6538 | -8/Materials | Identified exit to Storage 6539 | -8/Materials | Build established: Mutant 6675 | -8/Materials | Entered Storage 7191 | -8/Storage | Used back door to open Recycling access 7191 | -8/Storage | Discovered new exit (range 5) 7589 | -8/Storage | Entered Recycling 8018 | -8/Recycling | Discovered new exit (range 16) 8465 | -8/Recycling | Scanned before Scraplab entrance 8490 | -8/Recycling | Entered Scraplab 8504 | -8/Recycling | Discovered new exit (range 2) 8507 | -8/Recycling | Entered Scraptown 8507 | -8/Scraptown | System corruption cleaned by C-Scrubber 8898 | -8/Scraptown | Discovered new exit (range 11) 8921 | -8/Scraptown | Scanned Subdweller tech in exchange for log data 8926 | -8/Scraptown | Learned location of Zion (-7) 8928 | -8/Scraptown | Learned Factory emergency access door positions 8988 | -8/Scraptown | Visited Assassins FH 9048 | -8/Scraptown | Visited Cyclists 9337 | -8/Scraptown | Heard Great Nut preacher, LISTEN AND RECITE! 9406 | -8/Scraptown | Visited TADAMA 9438 | -8/Scraptown | Visited The Evicted 9531 | -8/Scraptown | Visited Bundlers 9620 | -8/Scraptown | Visited CR-KLE's Repair Center 9656 | -8/Scraptown | Visited Comm Corps 9756 | -8/Scraptown | Visited UFD Registry 9756 | -8/Scraptown | Registered with UFD as "Macetail" 9813 | -8/Scraptown | Visited Abandonware Association 9842 | -8/Scraptown | Learned abandonware demo "ERRANTS.EXE" 9842 | -8/Scraptown | Learned abandonware demo "POISON.EXE" 9887 | -8/Scraptown | Visited Research Penetration Think Tank 9928 | -8/Scraptown | Visited A0-MCA Data Center 9954 | -8/Scraptown | Visited Infowarlord's Domain 9992 | -8/Scraptown | Visited Derelict Rescue Squad 10032 | -8/Scraptown | Visited Supply Room 10324 | -8/Scraptown | Visited Junk Repository 10379 | -8/Scraptown | Visited DA-N13 Charitable Foundation 10396 | -8/Scraptown | Found DCF Scrap (31 items) 10451 | -8/Scraptown | Visited Supply Room 10565 | -8/Scraptown | Visited Curators Association 10654 | -8/Scraptown | Discovered new exit (range 5) 10936 | -8/Scraptown | Given an A rating by A0-MCA 11032 | -8/Scraptown | Attached Rainbow Chip, gained temporary slots: Power, Propulsion, Utility, Weapon 11090 | -8/Scraptown | Found A0-MCA's Component Scanner 11296 | -8/Scraptown | Found Exp. Terrain Scanner 11873 | -8/Scraptown | Entered Cyclist Reading Room 12315 | -8/Scraptown | Found DRS Beacon 12350 | -8/Scraptown | Build established: Tank 12692 | -8/Scraptown | CR-KLE repaired 10 parts 13393 | -8/Scraptown | Found Scrap Suit 13438 | -8/Scraptown | Entered Factory 13438 | -6/Factory | Evolved 4 slots: Utility x2, Weapon x2 13492 | -6/Factory | Spotted B-75 Beast 13518 | -6/Factory | Destroyed B-75 Beast 13733 | -6/Factory | Build established: Derelict-Tank 13871 | -6/Factory | Discovered new exit (range 16) 13900 | -6/Factory | Repaired Reactive Plating 13947 | -6/Factory | Found Rocket Array 14648 | -6/Factory | Build established: Tank 14756 | -6/Factory | Entered Extension 14835 | -6/Extension | Rescued a captive Derelict 15256 | -6/Extension | Disrupted transfer network 15332 | -6/Extension | Rescued A7 15379 | -6/Extension | Rescued a captive Derelict 15386 | -6/Extension | Rescued a captive Derelict 15686 | -6/Extension | Energy Cycler disabled 15686 | -6/Extension | Rescued a captive Derelict 15691 | -6/Extension | Rescued a captive Derelict 15693 | -6/Extension | Rescued a captive Derelict 15778 | -6/Extension | Build established: Commander-Tank 15944 | -6/Extension | Spotted B-75 Beast 15950 | -6/Extension | Destroyed B-75 Beast 15965 | -6/Extension | Discovered new exit (range 15) 15968 | -6/Extension | Spotted B-75 Beast 15975 | -6/Extension | Allies destroyed B-75 Beast 16088 | -6/Extension | Lost 4 allies 16240 | -6/Extension | Discovered new exit (range 16) 16243 | -6/Extension | Discovered new exit (range 14) 16475 | -6/Extension | Entered Cetus 16475 | -6/Cetus | Accompanied by 10 allies (A7) 16480 | -6/Cetus | Acquired a Cetus Manufacturing Module code from A7 16496 | -6/Cetus | Spotted Cetus Guard 16496 | -6/Cetus | Spotted Cetus Guard 16502 | -6/Cetus | Spotted Cetus Guard 16503 | -6/Cetus | Allies destroyed Cetus Guard 16503 | -6/Cetus | Spotted Cetus Guard 16508 | -6/Cetus | Allies destroyed Cetus Guard 16518 | -6/Cetus | Allies destroyed Cetus Guard 16520 | -6/Cetus | Allies destroyed Cetus Guard 16542 | -6/Cetus | Lost 3 allies 16566 | -6/Cetus | Cetus Manufacturing Module disabled 16681 | -6/Cetus | Failed to start Cetus Manufacturing Module 16800 | -6/Cetus | Discovered new exit (range 16) 16843 | -6/Cetus | Entered Archives 16843 | -6/Archives | Accompanied by 7 allies (A7) 16844 | -6/Archives | Build established: Scavenger-Tank 16903 | -6/Archives | Discovered new exit (range 16) 16906 | -6/Archives | Lost 3 allies 16921 | -6/Archives | Discovered new exit (range 16) 16953 | -6/Archives | Unable to access archive contents 17096 | -6/Archives | Entered Hub_04(d) 17096 | -6/Hub_04(d) | Accompanied by 3 allies 17291 | -6/Hub_04(d) | Garrison activated, responded to threat 17337 | -6/Hub_04(d) | Lost 3 parts (2u1w) 17379 | -6/Hub_04(d) | Destroyed 17 combat bots 17446 | -6/Hub_04(d) | First assault squad dispatched 17451 | -6/Hub_04(d) | Discovered new exit (range 9) 17474 | -6/Hub_04(d) | Entered Factory 17474 | -5/Factory | Evolved 2 slots: Utility x1, Weapon x1 17503 | -5/Factory | Lost 5 parts (2u3w) 17846 | -5/Factory | Discovered new exit (range 15) 18074 | -5/Factory | First assault squad dispatched 18163 | -5/Factory | Entered another Factory area 18163 | -4/Factory | Evolved 2 slots: Power x1, Utility x1 18310 | -4/Factory | Spotted B-86 Titan 18342 | -4/Factory | Destroyed B-86 Titan 18414 | -4/Factory | Discovered new exit (range 63) 18585 | -4/Factory | Entered Research 18585 | -3/Research | Evolved 2 slots: Utility x2 18586 | -3/Research | Identified exit to Armory 18654 | -3/Research | Build established: Scavenger-Gunner 18680 | -3/Research | Identified exit to Testing 18804 | -3/Research | Garrison activated, responded to threat 18872 | -3/Research | Destroyed 8 combat bots 19091 | -3/Research | Entered Testing 19346 | -3/Testing | Scanned by Researcher 19362 | -3/Testing | Found Prototype Protection 19362 | -3/Testing | Identified SHELL Armor 19366 | -3/Testing | Found Prototype Protection 19366 | -3/Testing | Identified Hvy. Regenerative Plating 19370 | -3/Testing | Found Prototype Protection 19370 | -3/Testing | Identified Lgt. Regenerative Plating 19469 | -3/Testing | Destroyed 11 combat bots 19475 | -3/Testing | Lost 3 parts (1n2w) 19686 | -3/Testing | Found Prototype Ballistic Gun 19686 | -3/Testing | Identified Hyp. Multirail 19722 | -3/Testing | Lost 3 parts (2p1w) 19795 | -3/Testing | Destroyed 8 combat bots 20014 | -3/Testing | Spotted PX-CV0MCX10RJ 20028 | -3/Testing | Destroyed PX-CV0MCX10RJ 20114 | -3/Testing | System corruption reached 10% 20141 | -3/Testing | First assault squad dispatched 20180 | -3/Testing | Garrison activated, responded to threat 20230 | -3/Testing | Lost 6 parts (1p1n2u2w) 20293 | -3/Testing | Spotted PX-1MSQKJAE7N 20602 | -3/Testing | Found Prototype Leg 20602 | -3/Testing | Identified Myomer Exoskeleton 20644 | -3/Testing | Found Prototype Hackware 20714 | -3/Testing | Found Prototype Device 20714 | -3/Testing | Identified 2N-1CE's Frost Array 20751 | -3/Testing | Spotted Striker 20751 | -3/Testing | Spotted Striker 20774 | -3/Testing | Destroyed Striker 20779 | -3/Testing | Destroyed Striker 20844 | -3/Testing | Lost 8 parts (1p1n2u4w) 20890 | -3/Testing | Core integrity fell below 50% 21037 | -3/Testing | Discovered new exit (range 8) 21047 | -3/Testing | Entered Research 21047 | -2/Research | Evolved 2 slots: Propulsion x1, Utility x1 21149 | -2/Research | Identified Exp. Hacking Suite 21351 | -2/Research | Build established: Scavenger-Mutant 21553 | -2/Research | Found Fusion Bomb Launcher 21555 | -2/Research | Found Fusion Bomb Launcher 21558 | -2/Research | Discovered new exit (range 11) 21571 | -2/Research | Found Fusion Bomb Launcher 21574 | -2/Research | Scrapoid reinforcements arrived 21576 | -2/Research | Found Fusion Bomb Launcher 21580 | -2/Research | First assault squad dispatched 21608 | -2/Research | Entered Access 21608 | -1/Access | Accompanied by 5 allies 21608 | -1/Access | Evolved 2 slots: Propulsion x1, Utility x1 21841 | -1/Access | Build established: Scavenger-Gunner 21858 | -1/Access | First assault squad dispatched 22034 | -1/Access | Lost 3 allies 22039 | -1/Access | Found Scrap Suit 22276 | -1/Access | System corruption reached 10% 22347 | -1/Access | Found Prototype Energy Gun 22347 | -1/Access | Identified Enh. Gamma Rifle 22348 | -1/Access | Lost 9 parts (3n1u5w) 22441 | -1/Access | Garrison activated, responded to threat 22560 | -1/Access | System corruption reached 30% 22569 | -1/Access | Core integrity fell below 50% 22593 | -1/Access | Core integrity fell below 20% 22637 | -1/Access | Allied Derelicts emerged from ambush trap array 22649 | -1/Access | Lost 27 parts (2p6n11u8w) 22668 | -1/Access | Destroyed by P-80 Master with Gamma Rifle Last Messages --------------- 22609_ Slammed into K-01 Serf. 22610_ P-80 Master resets P-80 Master, system corruption cleaned. 22613_ System corrupted: Component data lost. 22618_ Adv. Weapon Cycler destroyed. 22635_ System corrupted: IFF burst signal emitted. 22637_ Triggered Ambush Trap. 22637_ IT-6UO(g) emerges from a hatch in the floor. 22637_ D1-FU1(g) emerges from a hatch in the floor. 22637_ CB-MWZ(g) emerges from a hatch in the floor. 22639_ IT-6UO(g): "We were hacked into the system waiting for the right moment to spring our attack, but seeing as you've already triggered the mechanism and given away our position, let's roll with it." 22653_ Acquired Imp. Reaction Control System. 22654_ System corrupted: Matter fused (-9). 22655_ ALERT: Significant disruption in Zone 8L, multiple assault carriers dispatched. 22658_ Penetrated by Slug. 22658_ Imp. Reaction Control System destroyed. 22660_ Acquired Adv. System Restoration Module. 22665_ Acquired Adv. Heavy Siege Treads. Map ----- +----------------------------------------------------+ | ?????????# #?????????????# ############??? | | ?????????# #?????????????# ?? | | ?????????# #?????????????# ?? | | ?????????# #?????????????# ?? | | ?????????# #?????????????# ?? | | ????????## ##????????????# ?? | | ????????# #????????????# #############??? | | ????????# ############/# #??????????????? | | ????????# #??????????????? | | ????????# #??????????????? | | ????????# #??????????????? | | ????????# ###################??????????????? | | ????????# #????????????????????????????????? | | ????????### #############??????????????????????? | | ??????????# # #??????????????????????? | | ??????????# + #??????????????????????? | | ??????????# # #??????????????????????? | | ??????????# # #??????????????????????? | | ??????????# #? #??????????????????????? | | ??????????# #? #??????????????????????? | | ??????????# #?? #??????????????????????? | | ########### #??##########??????????????????????? | | ## ##?????????????????????????????????? | | ] # #################+#####???????????? | | " # p ????????? | | """ + p @ ????????? | | """ # ????????? | | " # ###########+####???????????? | | # #??????????????????????????? | | ! # #??????????????????????????? | | ########## ???????????????????????? | | ?????????###### ###########??????????????????????? | | ??????????????# #????????????????????????????????? | | ??????????????# #????????????????????????????????? | | ?????????????? ????????????????????????????????? | | ?????????????? ????????????????????????????????? | | ?????????????? ???????????????????????????????? | | ?????????????? ]???????????????????????????????? | | ????????????? ???????????????????????????????? | | ?????????????# ##??????????????????????????????? | | ?????????????# #???????????????????????????????? | | ?????????????# #???????????????????????????????? | | ?????????????? ????????????????????????????????? | | ?????????????????????????????????????????????????? | | ?????????????????????????????????????????????????? | | ?????????????????????????????????????????????????? | | ?????????????????????????????????????????????????? | | ?????????????????????????????????????????????????? | | ?????????????????????????????????????????????????? | | ?????????????????????????????????????????????????? | +----------------------------------------------------+ Best States ------------- Heat Dissipation 152 Energy Generation 45 Energy Capacity 1040 Matter Stores 300 Matter Capacity 300 Sight Range 16 Terrain Scan Range 30 Terrain Scan Density 10 Jamming Range 16 EM Shielding 3 Armor Coverage 1800 Resistance: KI 20 Resistance: TH 30 Resistance: EM 15 Weapon Shielding 33 Weapon Cycling 30 Evasion (%) 55 Targeting Accuracy 8 Target Analysis 12 Recoil Reduction 5 Kinecelleration 30 Offensive Hacking 16 Item Schematics ----------------- Hcp. Storage Unit | -8/Recycling | Hacked Huge Storage Unit | -8/Recycling | Hacked Exp. Thermal Shield | -3/Testing | Archive Electron Diverter | -3/Testing | Archive Adv. Gravity Neutralizer | -3/Testing | Archive Coolant Network | -3/Testing | Archive Com. Tesla Bomb Launcher | -3/Testing | Archive Exp. Target Analyzer | -3/Testing | Archive Adv. Energy Well | -3/Testing | Archive Exp. Terrain Scan Processor | -3/Testing | Archive Robot Schematics ------------------ A-02 Transporter | -3/Testing | Archive Fabricated ------------ Nothing Alien Tech Used ----------------- None Achievements -------------- None Challenges ------------ None Game ------ Seed RecoilCoilBarrier Manual? 0 Play Time 04:54:19 Cumulative 158.3 hours Start 2024.08.24 @ 19:34:47 End 2024.08.30 @ 00:08:33 Sessions 17 Manual Loads 0 Difficulty Rogue Special Mode None Game No. 78 Rogue 76 Adventurer 0 Explorer 2 Win Type - Total 9 Types 9/0/0/0/0/0/0/0/0 Lore% 57 Gallery% 70 Achievement% 57 Wizard Run 0 Options --------- Layout 0 ASCII 0 Keyboard 1 Movement Numpad Keybinds 0 Fullscreen 1 Font 24/Smallcaps Map View 76x50 Zoom Use 0% Tactical HUD 1 Map Filters NONE Filters NONE Steam 1 RUN: cf01a28b-2cde-49f0-b02c-bb19d7fabcd8